Cogmind - Beta 13 *** ADVENTURER MODE // 2024.04.16 @ 14:57:01 Player: Shippujinlai Result: Destroyed by B-75 Beast with Heavy Plasma Cannon Performance ------------- Evolutions (5) 2500 Regions Visited (10) 2000 Robots Destroyed (115) 575 Value Destroyed (3698) 3698 Prototype IDs (7) 140 Alien Tech Used (0) 0 Bonus (527) 527 TOTAL SCORE: 9440 Bonus ------- High Alert Combat Kills 240 Follower Combat Kills 407 Friendly Fire -120 Cogmind --------- Core Integrity 0/1000 Matter 280/300 Energy 99/100 System Corruption 5% Temperature Cool (12) Movement Core (50) Location -5/Extension Parts ------- > --- POWER (3) -------- (None) > --- PROPULSION (4) --- (None) > --- UTILITY (7) ------ Improved Core Shielding Weapon Shielding System Shield > --- WEAPON (3) ------- (None) > --- INVENTORY (5) ---- Improved Heat Sink Advanced Energy Well (500) Advanced Targeting Computer Advanced Targeting Computer 01-MTF's Autohacker Peak State ------------ > --- POWER ------------ Light Nuclear Core Micro Nuclear Core > --- PROPULSION ------- Wheel Armored Wheel > --- UTILITY ---------- Improved Heat Sink Coolant Injector Large Storage Unit Signal Interpreter Layered Light Armor Plating System Shield > --- WEAPON ----------- Advanced Beam Cannon Missile Launcher Shock Maul > --- INVENTORY -------- Improved Heat Sink Advanced Energy Well Improved Signal Interpreter Advanced Targeting Computer Advanced Targeting Computer Advanced Targeting Computer Precision Energy Filter Particle Charger Improved Weapon Shielding Layered Medium Armor Plating Improved Powered Armor Advanced Force Field 01-MTF's Autohacker Particle Cannon [Rating: 44] Favorites ----------- Power Improved Ion Engine Engine Improved Ion Engine Power Core Light Nuclear Core Propulsion Armored Wheel Leg Flexi-carbon Leg Wheel Armored Wheel Hover Unit Hover Unit Flight Unit Field Propulsion Drive Utility Improved Heat Sink Device Improved Heat Sink Storage Large Storage Unit Processor Signal Interpreter Hackware System Shield Protection Layered Light Armor Plating Weapon Particle Cannon Energy Gun EM Pulse Gun Energy Cannon Particle Cannon Ballistic Gun Assault Rifle Launcher Missile Launcher Impact Weapon Shock Maul Build | -11 -10 -9 -8 -8 -7 -6 -6 -6 -5 -5 ------- Run | Yrd Mat Mat Mat Sto Fac Fac Low Low Fac Ext Slots Evolved 10 | . . 2 2 . 2 2 . . 2 . Power 2 | . . . 1 . . . . . 1 . Propulsion 2 | . . 1 . . . 1 . . . . Utility 5 | . . 1 1 . 1 1 . . 1 . Weapon 1 | . . . . . 1 . . . . . Parts Attached 101 | 6 10 17 8 24 19 1 2 5 9 . Power 13 | 1 2 . . 4 3 . 1 . 2 . Engine 10 | 1 2 . . 3 1 . 1 . 2 . Core 3 | . . . . 1 2 . . . . . Reactor . | . . . . . . . . . . . Propulsion 25 | 2 4 7 3 4 2 . . . 3 . Treads . | . . . . . . . . . . . Leg 3 | . . . 2 . . . . . 1 . Wheel 19 | 2 3 6 1 4 2 . . . 1 . Hover 1 | . 1 . . . . . . . . . Flight 2 | . . 1 . . . . . . 1 . Utility 42 | 1 1 6 5 14 8 1 . 3 3 . Device 20 | . 1 2 3 8 5 . . . 1 . Storage 5 | 1 . 1 . 1 2 . . . . . Processor 1 | . . 1 . . . . . . . . Hackware 1 | . . . . . . 1 . . . . Protection 15 | . . 2 2 5 1 . . 3 2 . Artifact . | . . . . . . . . . . . Weapon 21 | 2 3 4 . 2 6 . 1 2 1 . Energy Gun 3 | 1 1 . . . . . . . 1 . Energy Cannon 12 | . 2 3 . 1 5 . . 1 . . Ballistic Gun 2 | 1 . 1 . . . . . . . . Ballistic Cannon . | . . . . . . . . . . . Launcher 1 | . . . . . 1 . . . . . Special Weapon . | . . . . . . . . . . . Impact Weapon 3 | . . . . 1 . . 1 1 . . Slashing Weapon . | . . . . . . . . . . . Piercing Weapon . | . . . . . . . . . . . Special Melee Weapon . | . . . . . . . . . . . Unidentified Prototypes 7 | . . 3 . 3 . . . . 1 . Corrupted Parts 1 | . . . . . . . . . 1 . System Corruption 2 | . . . . . . . . . 2 . Parts Lost 42 | . 2 . . 12 5 . 2 8 13 . Power 11 | . 1 . . 5 . . 1 2 2 . Propulsion 11 | . 1 . . 3 2 . . 2 3 . Utility 11 | . . . . 3 . . . 2 6 . Weapon 9 | . . . . 1 3 . 1 2 2 . Highest Loss Streak 8 | . 1 . . 4 2 . 1 8 5 . To Critical Strikes 1 | . . . . . 1 . . . . . Average Slot Usage (%) 80 | . 98 98 90 92 81 75 77 49 30 17 Engine 6 | . 13 11 9 14 4 . . 1 . . Core 4 | . . . . 1 7 13 11 . . . Wheel 18 | . 27 31 26 26 16 13 13 1 1 . Device 10 | . 13 10 9 8 11 13 13 8 4 . Storage 8 | . 14 11 9 10 13 6 6 6 2 . Processor 4 | . . . 9 9 7 6 6 6 4 . Hackware 2 | . . . . . . 2 6 6 5 5 Protection 5 | . . 10 9 5 1 6 6 9 5 11 Energy Cannon 11 | . 20 22 18 15 13 6 6 2 . . Launcher 1 | . . . . . 2 6 3 . . . Impact Weapon 1 | . . . . 1 1 . 1 4 2 . Naked Turns . | . . . . . . . . . . . Heaviest Build 51 | 12 21 46 39 46 49 47 50 51 34 3 Greatest Support 44 | 20 32 44 36 36 36 22 22 22 20 3 Greatest Overweight (x) 11 | . 2 1 1 3 2 2 2 11 11 . Average Overweight (x) 1 | . . . 1 . 1 2 1 6 1 . Largest Inventory Capacity 15 | 8 8 15 15 15 15 15 15 15 15 5 Average Capacity 13 | 6 8 12 15 15 15 15 15 15 9 5 Most Carried 15 | 1 8 15 15 15 14 10 15 15 10 5 Average Carried 10 | . 4 10 14 14 9 9 13 11 7 5 Final Capacity 15 | 8 8 15 15 15 15 15 15 15 5 5 Final Carried 15 | 1 8 15 15 15 10 9 15 10 5 5 Class Distribution -------------------- 39% | Scavenger-Mutant 36% | Mutant 13% | Hacker-Mutant 8% | Commander-Mutant Dominant Class ---------------- Mutant | -10/Materials Mutant | -9/Materials Mutant | -8/Materials Commander-Mutant | -8/Storage Scavenger-Mutant | -7/Factory Scavenger-Mutant | -6/Factory Scavenger-Mutant | -6/Lower Caves Hacker-Mutant | -6/Lower Caves Hacker-Mutant | -5/Factory Hacker-Mutant | -5/Extension Resources | -11 -10 -9 -8 -8 -7 -6 -6 -6 -5 -5 ----------- Run | Yrd Mat Mat Mat Sto Fac Fac Low Low Fac Ext Matter Collected 1442 | 219 164 160 90 225 219 . 310 25 30 . Remotely . | . . . . . . . . . . . Salvage Created 4655 | . 524 1239 484 982 623 . 649 . 154 . Parts 224 | . 18 87 20 40 27 . 21 . 11 . Haulers Intercepted 7 | . 1 2 2 1 . . 1 . . . Recyclers Shooed 3 | . . . 1 . . . . . 2 . Parts Field Recycled . | . . . . . . . . . . . Retrieved Matter . | . . . . . . . . . . . Parts Self-Destructed 37 | . . . . . . . 26 11 . . Prevented . | . . . . . . . . . . . Kills | -11 -10 -9 -8 -8 -7 -6 -6 -6 -5 -5 ------- Run | Yrd Mat Mat Mat Sto Fac Fac Low Low Fac Ext Combat Hostiles Destroyed 87 | . 7 25 6 17 13 . 18 . 1 . Guns 5 | . 4 . . . . . . . 1 . Cannons 59 | . . 23 5 13 10 . 8 . . . AOE 13 | . 2 . . . 1 . 10 . . . Classes Destroyed 13 | . 4 5 . . 4 . . . . . Worker 1 | . . . . . 1 . . . . . Builder 2 | . . 2 . . . . . . . . Tunneler 2 | . . 1 . . . . . . 1 . Hauler 7 | . 1 2 2 1 . . 1 . . . Recycler 4 | . 1 2 1 . . . . . . . Operator 5 | . . 2 . 3 . . . . . . Watcher 6 | . 1 3 . 1 . . . . 1 . Swarmer 22 | . . 11 . 3 2 . 6 . . . Grunt 40 | . 7 8 4 7 5 . 8 . 1 . Brawler 3 | . . . . . 1 . 2 . . . Sentry 20 | . . 6 2 8 2 . 2 . . . Hunter 2 | . . . . . 2 . . . . . Programmer 1 | . . . . . 1 . . . . . Best Kill Streak 10 | . 4 10 3 5 7 . 5 . 2 . Combat Bots Only 6 | . 2 5 2 4 6 . 5 . 1 . Max Kills in Single Turn 2 | . 1 2 1 2 2 . 2 . 1 . Gunslinging . | . . . . . . . . . . . Exploded 2 | . 1 . . . 1 . 2 . . . Melee . | . . . . . . . . . . . Uniques/NPCs Destroyed . | . . . . . . . . . . . Combat | -11 -10 -9 -8 -8 -7 -6 -6 -6 -5 -5 -------- Run | Yrd Mat Mat Mat Sto Fac Fac Low Low Fac Ext Hostile Shots Fired 795 | . 42 91 25 99 121 . 58 193 157 9 Missed 224 | . 10 14 11 27 34 . 17 52 55 4 Damage Taken 7486 | . 324 526 157 1023 1053 36 520 2169 1562 116 Core 2528 | . 70 82 26 145 451 36 105 604 925 84 Absorbed by Shields . | . . . . . . . . . . . Redirected to Shielding 152 | . . . . . . . . 97 23 32 Ignored by Resistances 2101 | . 95 232 46 288 227 9 146 600 427 31 Core Remaining (%) 61 | 100 72 79 . 68 35 . . 12 . . Volleys Fired 264 | . 30 69 21 43 38 2 40 13 8 . Largest 3 | . 2 2 2 2 3 2 2 2 1 . Hottest 204 | . 136 136 136 136 204 104 104 136 55 . Shots Fired 463 | . 61 126 42 80 81 4 41 20 8 . Gun 54 | . 46 . . . . . . . 8 . Cannon 388 | . 15 126 42 80 77 2 26 20 . . Launcher 21 | . . . . . 4 2 15 . . . Special . | . . . . . . . . . . . Kinetic 5 | . 5 . . . . . . . . . Thermal 406 | . 33 126 42 80 77 2 26 20 . . Explosive 21 | . . . . . 4 2 15 . . . Electromagnetic 31 | . 23 . . . . . . . 8 . Robot Hit Streak 30 | . 29 22 15 30 16 . 17 15 18 . Robot Miss Streak 4 | . 2 2 2 2 4 4 2 3 1 . Penetration Max . | . . . . . . . . . . . Secondary Targets 2 | . 2 . . . . . . . . . Max Gunslinging Chain 1 | . 1 . . . . . . . . . Shots Hit Robots 354 | . 53 85 31 71 56 . 33 18 7 . Core Hits 166 | . 18 35 12 23 23 . 41 4 10 . Critical Kills 5 | . . 2 1 . 1 . 1 . . . Critical Parts Destroyed 5 | . . . . 4 . . . 1 . . Critical Strikes 11 | . 1 2 1 4 1 . 1 1 . . Meltdown 5 | . . 2 1 . 1 . 1 . . . Corrupt 1 | . 1 . . . . . . . . . Smash 5 | . . . . 4 . . . 1 . . Melee Attacks 16 | . . . . 11 1 . 2 2 . . Impact 16 | . . . . 11 1 . 2 2 . . Slashing . | . . . . . . . . . . . Piercing . | . . . . . . . . . . . Sneak Attacks 2 | . . . . 1 . . 1 . . . Combat Hostiles . | . . . . . . . . . . . Follow-up Attacks . | . . . . . . . . . . . Damage Inflicted 9681 | . 924 1862 648 1933 1301 9 2353 423 228 . Guns 658 | . 496 . . . . . . . 162 . Cannons 6233 | . 266 1862 648 1440 1220 . 469 328 . . Explosions 1968 | . 162 . . . 81 9 1716 . . . Melee 756 | . . . . 493 . . 168 95 . . Ramming 66 | . . . . . . . . . 66 . Kinetic 44 | . 44 . . . . . . . . . Thermal 6528 | . 561 1862 648 1440 1220 . 469 328 . . Explosive 1806 | . . . . . 81 9 1716 . . . Electromagnetic 481 | . 319 . . . . . . . 162 . Impact 756 | . . . . 493 . . 168 95 . . Slashing . | . . . . . . . . . . . Piercing . | . . . . . . . . . . . Highest Corruption 5 | . 2 3 . . . . . . 5 5 Average Corruption 1 | . 1 3 . . . . . . 1 5 Corruption Purged . | . . . . . . . . . . . Corruption Blocked . | . . . . . . . . . . . Effects 18 | . 6 6 . . . . . . 3 3 Message Errors 9 | . 3 1 . . . . . . 2 3 Matter Fused 1 | . 1 . . . . . . . . . Energy Discharges 3 | . . 2 . . . . . . 1 . Parts Fused 1 | . 1 . . . . . . . . . Data Loss (minor) 3 | . . 3 . . . . . . . . Misfires 1 | . 1 . . . . . . . . . Overload Shots . | . . . . . . . . . . . Overflow Damage 414 | . 19 8 1 243 1 . 76 66 . . Projectiles 49 | . 12 8 1 10 1 . 17 . . . Explosions 66 | . 7 . . . . . 59 . . . Melee 299 | . . . . 233 . . . 66 . . Knockbacks 2 | . . . . 1 . . . 1 . . Impact 2 | . . . . 1 . . . 1 . . Kinetic . | . . . . . . . . . . . Secondary . | . . . . . . . . . . . Self-Inflicted Damage 64 | . . . . . . 36 . . 28 . Shots 1 | . . . . . . 1 . . . . Rammed 18 | . . . . . . . . . 18 . Targets Rammed 23 | . . . . . . . . . 23 . Kicked 5 | . . . . . . . . . 5 . Crushed . | . . . . . . . . . . . Highest Temperature 1201 | . 279 228 261 371 1201 6 28 141 25 . Average Temperature 142 | . 91 95 82 116 391 4 5 65 7 . Received Heat Transfer 3243 | . 255 168 117 531 213 . 156 1173 606 24 Effects 33 | . . . . 2 31 . . . . . Shutdowns 8 | . . . . 1 7 . . . . . Energy Bleed 4 | . . . . . 4 . . . . . Interference 8 | . . . . . 8 . . . . . Matter Decay 1 | . . . . . 1 . . . . . Damage (minor) 6 | . . . . 1 5 . . . . . Damage (major) 3 | . . . . . 3 . . . . . Damage (core) 3 | . . . . . 3 . . . . . Siege Activations . | . . . . . . . . . . . Robots Corrupted . | . . . . . . . . . . . Combat Hostiles . | . . . . . . . . . . . Parts Fried 5 | . 1 . . 3 . . . . 1 . Impact Corruptions 13 | . . . . 11 . . . 2 . . Robots Melted 8 | . 1 2 1 1 2 . 1 . . . Combat Hostiles 7 | . 1 2 1 1 2 . . . . . Parts Melted 24 | . 3 5 2 6 7 . 1 . . . Heat Transferred 11415 | . 981 3330 1147 2405 2109 . 851 592 . . Parts Sabotaged . | . . . . . . . . . . . Parts Stolen . | . . . . . . . . . . . Parts Stripped . | . . . . . . . . . . . Power Chain Reactions 3 | . 3 . . . . . . . . . Alert | -11 -10 -9 -8 -8 -7 -6 -6 -6 -5 -5 ------- Run | Yrd Mat Mat Mat Sto Fac Fac Low Low Fac Ext Peak Influence 653 | . 167 653 479 626 592 231 . . 133 87 Initial 234 | . . 27 234 172 212 197 . . 68 12 Average 257 | . 62 311 358 452 371 224 . . 54 29 Maximum Alert Level 2 | . . 2 2 2 2 1 . . . . Low Security (%) 41 | 100 100 26 . 2 . 16 . . 100 100 Level 1 26 | . . 39 55 11 76 83 . . . . Level 2 31 | . . 34 44 86 23 . . . . . Level 3 . | . . . . . . . . . . . Level 4 . | . . . . . . . . . . . Level 5 . | . . . . . . . . . . . High Security . | . . . . . . . . . . . Max Security . | . . . . . . . . . . . Squads Dispatched 19 | . 2 3 2 6 4 . . . 2 . Investigation 10 | . 2 1 2 1 2 . . . 2 . Extermination 2 | . . . . . 2 . . . . . Reinforcement 5 | . . 2 . 3 . . . . . . Assault 2 | . . . . 2 . . . . . . Garrison . | . . . . . . . . . . . Intercept . | . . . . . . . . . . . Searches Triggered . | . . . . . . . . . . . Construction Impeded . | . . . . . . . . . . . Haulers Reinforced . | . . . . . . . . . . . Active Scanning Responses . | . . . . . . . . . . . Cargo Convoy Interrupts . | . . . . . . . . . . . Stealth | -11 -10 -9 -8 -8 -7 -6 -6 -6 -5 -5 --------- Run | Yrd Mat Mat Mat Sto Fac Fac Low Low Fac Ext Distress Signals 6 | . 3 1 . . . . . . 1 1 Communications Jammed . | . . . . . . . . . . . Distress Signals . | . . . . . . . . . . . Times Spotted 181 | . 14 33 7 49 16 2 22 7 17 14 Peak Tracking Total 15 | . 5 5 2 15 5 1 10 7 10 7 Tactical Retreats 17 | . 2 . 1 4 1 . 2 2 4 1 Traps | -11 -10 -9 -8 -8 -7 -6 -6 -6 -5 -5 ------- Run | Yrd Mat Mat Mat Sto Fac Fac Low Low Fac Ext Traps Triggered 10 | . 4 1 1 3 . . . . 1 . Indirectly . | . . . . . . . . . . . Trap Hack Attempts . | . . . . . . . . . . . Triggered . | . . . . . . . . . . . Disarmed 4 | . . . . 4 . . . . . . Reprogrammed . | . . . . . . . . . . . Reused . | . . . . . . . . . . . Traps Extracted . | . . . . . . . . . . . Installed . | . . . . . . . . . . . Triggered . | . . . . . . . . . . . Machines | -11 -10 -9 -8 -8 -7 -6 -6 -6 -5 -5 ---------- Run | Yrd Mat Mat Mat Sto Fac Fac Low Low Fac Ext Machines Disabled 8 | . . 3 . . 5 . . . . . Max in Single Turn 5 | . . 1 . . 5 . . . . . Garrison Access 1 | . . . . . . 1 . . . . Machines Repaired . | . . . . . . . . . . . Machines Dismantled . | . . . . . . . . . . . Machines Sabotaged . | . . . . . . . . . . . Overloaded Fab Kills . | . . . . . . . . . . . Hacking | -11 -10 -9 -8 -8 -7 -6 -6 -6 -5 -5 --------- Run | Yrd Mat Mat Mat Sto Fac Fac Low Low Fac Ext Machines Accessed 20 | . 5 3 1 4 3 1 2 . 1 . Terminals 15 | . 5 3 1 3 3 . . . . . Fabricators . | . . . . . . . . . . . Repair Stations . | . . . . . . . . . . . Recycling Units 1 | . . . . 1 . . . . . . Scanalyzers . | . . . . . . . . . . . Garrison Access 2 | . . . . . . 1 . . 1 . Total Hacks 57 | . 16 10 5 7 8 4 5 . 2 . Successful 25 | . 4 4 3 6 2 1 5 . . . Failed 31 | . 12 5 2 1 6 3 . . 2 . Catastrophic 8 | . 3 2 . . 2 . . . 1 . Database Lockouts 1 | . . 1 . . . . . . . . Manual 41 | . 16 8 6 7 4 . . . . . Terminals 45 | . 16 10 5 6 8 . . . . . Fabricators . | . . . . . . . . . . . Repair Stations . | . . . . . . . . . . . Recycling Units 1 | . . . . 1 . . . . . . Scanalyzers . | . . . . . . . . . . . Garrison Access 6 | . . . . . . 4 . . 2 . Terminal Hacks 21 | . 4 4 3 4 1 . 5 . . . Record 6 | . . 2 . . . . 4 . . . Robot Analysis 6 | . . 2 3 1 . . . . . . Open Door 1 | . . . . . . . 1 . . . Open DSF 1 | . . . . . 1 . . . . . Level Access Points 1 | . 1 . . . . . . . . . Branch Access Points 1 | . 1 . . . . . . . . . Emergency Access Points 2 | . 2 . . . . . . . . . Locate Traps 1 | . . . . 1 . . . . . . Disarm Traps 2 | . . . . 2 . . . . . . Fabricator Hacks . | . . . . . . . . . . . Repair Station Hacks . | . . . . . . . . . . . Recycling Unit Hacks 1 | . . . . 1 . . . . . . Report Inventory 1 | . . . . 1 . . . . . . Scanalyzer . | . . . . . . . . . . . Garrison Access Hacks 1 | . . . . . . 1 . . . . Seal Access 1 | . . . . . . 1 . . . . Unauthorized Hacks 2 | . . . . 1 1 . . . . . Terminals 2 | . . . . 1 1 . . . . . Assimilate 1 | . . . . . 1 . . . . . Botnet 1 | . . . . 1 . . . . . . Fabricators . | . . . . . . . . . . . Repair Stations . | . . . . . . . . . . . Recycling Units . | . . . . . . . . . . . Scanalyzers . | . . . . . . . . . . . Garrison Access . | . . . . . . . . . . . Data Cores Recovered 1 | . . 1 . . . . . . . . Used . | . . . . . . . . . . . Hacking Detections 14 | . 4 3 1 2 2 1 . . 1 . Full Trace Events 11 | . 4 2 1 1 2 . . . 1 . Feedback Events 1 | . . . . . . . . . 1 . Corruption 1 | . . . . . . . . . 1 . Feedback Blocked . | . . . . . . . . . . . Robot Schematics Acquired . | . . . . . . . . . . . Robots Built . | . . . . . . . . . . . Authchips . | . . . . . . . . . . . Time . | . . . . . . . . . . . Total Robot Build Rating . | . . . . . . . . . . . Part Schematics Acquired . | . . . . . . . . . . . Parts Built . | . . . . . . . . . . . Authchips . | . . . . . . . . . . . Time . | . . . . . . . . . . . Total Part Build Rating . | . . . . . . . . . . . Parts Repaired . | . . . . . . . . . . . Time . | . . . . . . . . . . . Parts Recycled . | . . . . . . . . . . . Recycled Matter . | . . . . . . . . . . . Retrieved Matter . | . . . . . . . . . . . Retrieved Components . | . . . . . . . . . . . Parts Scanalyzed . | . . . . . . . . . . . Part Schematics Acquired . | . . . . . . . . . . . Parts Damaged . | . . . . . . . . . . . Bothacking | -11 -10 -9 -8 -8 -7 -6 -6 -6 -5 -5 ------------ Run | Yrd Mat Mat Mat Sto Fac Fac Low Low Fac Ext Used RIF Installer . | . . . . . . . . . . . Robots Hacked . | . . . . . . . . . . . Non-combat . | . . . . . . . . . . . Combat . | . . . . . . . . . . . Robot Hacks Applied . | . . . . . . . . . . . Relay Couplers Released . | . . . . . . . . . . . Fabnet Peak Effective % . | . . . . . . . . . . . Robots Rewired 2 | . . . . . . . 2 . . . Allies Hacked . | . . . . . . . . . . . Hacks Repelled . | . . . . . . . . . . . Allies | -11 -10 -9 -8 -8 -7 -6 -6 -6 -5 -5 -------- Run | Yrd Mat Mat Mat Sto Fac Fac Low Low Fac Ext Total Allies 15 | . . . . 12 . . 2 1 . . Largest Group 10 | . . . . 10 . . 2 1 . . Highest-Rated Group 173 | . . . . 173 . . 50 127 . . Highest-Rated Ally 127 | . . . . 100 . . 30 127 . . Total Orders . | . . . . . . . . . . . Ally Attacks 85 | . . . . 79 . . . 6 . . Total Damage 1705 | . . . . 1246 . . . 459 . . Kills 15 | . . . . 11 . . . 4 . . Allies Corrupted . | . . . . . . . . . . . Allies Melted 1 | . . . . 1 . . . . . . Intel | -11 -10 -9 -8 -8 -7 -6 -6 -6 -5 -5 ------- Run | Yrd Mat Mat Mat Sto Fac Fac Low Low Fac Ext Robot Analysis Total 6 | . . 2 3 1 . . . . . . Derelict Logs Recovered 2 | . . . . . . . 2 . . . Drone Launches . | . . . . . . . . . . . Drone Recoveries . | . . . . . . . . . . . Exploration | -11 -10 -9 -8 -8 -7 -6 -6 -6 -5 -5 ------------- Run | Yrd Mat Mat Mat Sto Fac Fac Low Low Fac Ext Turns Passed 6398 | 46 898 795 267 986 558 206 1796 218 508 120 Spaces Moved 4781 | 46 602 544 147 749 353 173 1523 52 353 239 Core 425 | 1 . . . . . . . 24 161 239 Treads . | . . . . . . . . . . . Legs 3 | . . . . . . . . . 3 . Wheels 4279 | 45 594 544 147 749 353 173 1523 28 123 . Hover 8 | . 8 . . . . . . . . . Flight 66 | . . . . . . . . . 66 . Fastest Speed 45 | 50 80 90 105 90 90 115 100 100 45 50 Average Speed 106 | 79 92 101 105 104 107 115 109 336 128 50 Slowest Speed 600 | 80 185 105 105 135 120 115 115 600 600 50 Overloaded Moves . | . . . . . . . . . . . Propulsion Burnouts . | . . . . . . . . . . . Robots Hopped 1 | . . . . . . . . . 1 . Cave-ins Triggered . | . . . . . . . . . . . Exploration Rate (%) 35 | 3 81 59 13 77 11 4 97 6 10 26 Regions Visited 10 Branch Regions 4 Pre-discovered Areas 1 | . . . . . . . 1 . . . Known Exits Taken 8 | . 1 1 1 1 1 1 1 1 . . Unknown Exits Taken 2 | 1 . . . . . . . . 1 . Scrap Searched 5 | . . . . . . . 4 1 . . Spaces Dug 16 | . . . . 1 . . 15 . . . Terrain Destroyed 214 | . 10 . . 4 51 25 124 . . . Melee 1 | . . . . 1 . . . . . . Projectile 3 | . . . . 3 . . . . . . AOE 210 | . 10 . . . 51 25 124 . . . Terrain Rammed . | . . . . . . . . . . . Walls Destroyed . | . . . . . . . . . . . Machines Disabled . | . . . . . . . . . . . Actions | -11 -10 -9 -8 -8 -7 -6 -6 -6 -5 -5 --------- Run | Yrd Mat Mat Mat Sto Fac Fac Low Low Fac Ext Total 5608 | 52 882 664 217 849 456 175 1607 76 391 239 Wait 343 | . 226 8 34 11 40 . 21 3 . . Move 4769 | 45 601 543 146 748 352 172 1522 51 350 239 Hop 1 | . . . . . . . . . 1 . Pick Up 30 | 1 8 9 2 2 . . 7 1 . . Fast Attach 56 | 6 7 12 3 12 7 . 1 . 8 . Attach 28 | . 1 2 1 6 10 1 1 5 1 . Detach 17 | . 1 4 . 6 5 . 1 . . . Swap 17 | . 2 3 4 6 2 . . . . . Drop 33 | . 6 14 6 4 1 . 1 1 . . Fire 264 | . 30 69 21 43 38 2 40 13 8 . Melee 16 | . . . . 11 1 . 2 2 . . Ram 18 | . . . . . . . . . 18 . Kick 5 | . . . . . . . . . 5 . Crush . | . . . . . . . . . . . Escape Stasis . | . . . . . . . . . . . Rewire 11 | . . . . . . . 11 . . . Trap . | . . . . . . . . . . . Miscellaneous . | . . . . . . . . . . . Route ------- -11/Scrapyard -10/Materials (discovered 5 exits: *Mat x3 / *Min x2) -9/Materials (discovered 2 exits: *Mat x2) -8/Materials -8/Storage -7/Factory (discovered 2 exits: *Fac / *Low) -6/Factory -6/Lower Caves -6/Lower Caves -5/Factory -5/Extension History --------- Turn | Location | Event 13 | -11/Scrapyard | Discovered new exit (range 16) 47 | -11/Scrapyard | Entered Materials 271 | -10/Materials | Discovered new exit (range 7) 316 | -10/Materials | Build established: Mutant 582 | -10/Materials | Discovered new exit (range 4) 628 | -10/Materials | Discovered new exit (range 12) 663 | -10/Materials | Identified exit to Materials 702 | -10/Materials | Identified exit to Mines 945 | -10/Materials | Entered another Materials area 945 | -9/Materials | Evolved 2 slots: Propulsion x1, Utility x1 1295 | -9/Materials | Discovered new exit (range 5) 1304 | -9/Materials | Central database locked down 1610 | -9/Materials | Discovered new exit (range 16) 1739 | -9/Materials | Identified exit to Materials 1740 | -9/Materials | Entered another Materials area 1740 | -8/Materials | Evolved 2 slots: Power x1, Utility x1 1873 | -8/Materials | Discovered new exit (range 4) 1879 | -8/Materials | Identified exit to Storage 2007 | -8/Materials | Entered Storage 2063 | -8/Storage | Met 01-MTF 2155 | -8/Storage | Found Prototype Device 2155 | -8/Storage | Identified 01-MTF's Autohacker 2279 | -8/Storage | Remotely autohacked Sealed Heavy Doors 2338 | -8/Storage | Assisted by bots powering up and referring to "LRC-V3" 2542 | -8/Storage | Discovered new exit (range 16) 2589 | -8/Storage | Identified exit to Factory 2634 | -8/Storage | Build established: Commander-Mutant 2675 | -8/Storage | Remotely autohacked Sealed Heavy Doors 2779 | -8/Storage | Remotely autohacked Sealed Heavy Doors 2807 | -8/Storage | First assault squad dispatched 2920 | -8/Storage | Lost 6 allies 2954 | -8/Storage | Lost 4 parts (1p1n2u) 2993 | -8/Storage | Entered Factory 2993 | -7/Factory | Evolved 2 slots: Utility x1, Weapon x1 3181 | -7/Factory | Core integrity fell below 50% 3410 | -7/Factory | Discovered new exit (range 11) 3425 | -7/Factory | Identified exit to Lower Caves 3508 | -7/Factory | Discovered new exit (range 11) 3550 | -7/Factory | Identified exit to Factory 3551 | -7/Factory | Entered another Factory area 3551 | -6/Factory | Evolved 2 slots: Propulsion x1, Utility x1 3584 | -6/Factory | Build established: Scavenger-Mutant 3625 | -6/Factory | Discovered new exit (range 9) 3634 | -6/Factory | Identified exit to Lower Caves 3757 | -6/Factory | Entered Lower Caves 3758 | -6/Lower Caves | Encountered a Warlord checkpoint 3766 | -6/Lower Caves | Learned location of Extension (-5) 3768 | -6/Lower Caves | Learned Factory interactive machine intel 4061 | -6/Lower Caves | Found Imp. Powered Armor 4468 | -6/Lower Caves | Discovered new exit (range 14) 4491 | -6/Lower Caves | Identified exit to Lower Caves 4597 | -6/Lower Caves | Learned location of 1 exit from Research 4597 | -6/Lower Caves | Learned Factory emergency access door positions 4822 | -6/Lower Caves | Attracted the attention of an 0b10 checkpoint 4902 | -6/Lower Caves | Attracted the attention of an 0b10 outpost 5553 | -6/Lower Caves | Entered another Lower Caves area 5553 | -6/Lower Caves | Accompanied by 1 ally 5639 | -6/Lower Caves | Core integrity fell below 50% 5661 | -6/Lower Caves | Lost 8 parts (2p2n2u2w) 5661 | -6/Lower Caves | Core integrity fell below 20% 5663 | -6/Lower Caves | CL-ANK showed up to help 5665 | -6/Lower Caves | CL-ANK revealed a hidden path 5765 | -6/Lower Caves | Identified exit to Factory 5771 | -6/Lower Caves | Entered Factory 5771 | -5/Factory | Evolved 2 slots: Power x1, Utility x1 5773 | -5/Factory | Loaded intel: 54 interactive machine locations 5861 | -5/Factory | Build established: Hacker-Mutant 6105 | -5/Factory | Core integrity fell below 50% 6212 | -5/Factory | Core integrity fell below 20% 6246 | -5/Factory | Lost 5 parts (1p2n1u1w) 6272 | -5/Factory | Discovered new exit (range 15) 6279 | -5/Factory | Entered Extension 6392 | -5/Extension | Spotted B-75 Beast 6396 | -5/Extension | Spotted B-75 Beast 6399 | -5/Extension | Destroyed by B-75 Beast with Heavy Plasma Cannon Last Messages --------------- 06238_ Acquired Imp. Core Shielding. 06251_ K-01 Serf cleans the Matter Pump. 06264_ Penetrated by Slug. 06264_ Signal Interpreter destroyed. 06264_ K-01 Serf destroyed. 06267_ Penetrated by Slug. 06267_ Field Propulsion Drive destroyed. 06272_ EXIT=FOUND 06273_ OG D8/QVPLCBH#Z5C7Z LOCATION=UNKNOWN GOAL=ESCAPE 06301_ WSUFH#E,0J3EF5LV2JXZISSL96ZGQ>9MY0MWDUK#W|WMY,&YFW&H3SZ0H:KN3M 06343_ K-01 Serf enters Transfer Station. 06359_ R-10 Processor enters Transfer Station. 06394_ K-01 Serf destroyed. 06397_ Slug penetrates Wall. 06397_ Machine disabled. [Achievement: Achiever] Map ----- +----------------------------------------------------+ | ?????????????????????????????????????????????????? | | ?????????????????????????????????????????????????? | | ?????????????????????????????????????????????????? | | ?????????????????????????????????????????????????? | | ?????????????????????????????????????????????????? | | ?????????????????????????????????????????????????? | | ?????????????????????????????????????????????????? | | ?????????????????????????????????????????????????? | | ?????????????????????????????????????????????????? | | ?????????????????????????????????????????????????? | | ???????????????????????? ????????????????????????? | | ???????????????????????? ????????????????????????? | | ???????????????????????# ????????????????????????? | | ???????????????????????Y #???????????????????????? | | ???????????????????????# #???????????????????????? | | ???????????????????????# #???????????????????????? | | ???????????????????????# #???????????????????????? | | ???????????????????????# #???????????????????????? | | ???????????????????????# #??##?##????????????????? | | ?????????????????????### ###Y## ###?#????????????? | | ?????????????????????#"" " Y "" ""???????????? | | ?????????????????????# " " " " #??????????? | | ?????????????????????# #??????????? | | ???????????????????### #??????????? | | ####################;# #??????????? | | @ ????????? | | % ????????? | | ????????? | | ! ?????????? | | k R u *% uk RuR ?????????? | | ###################### BB BB #??????????? | | ?????????????????????# BB BB #??????????? | | ?????????????????????# #??????????? | | ?????????????????????# ???????????? | | ?????????????????????# ???????????? | | ?????????????????????######T#"""#####????????????? | | ???????????????????????????##????????????????????? | | ?????????????????????????????????????????????????? | | | | | | | | | | | | | | | | | | | | | | | | | +----------------------------------------------------+ Best States ------------- Heat Dissipation 62 Coolant Potential 65 Energy Generation 24 Energy Capacity 825 Matter Stores 300 Matter Capacity 300 Sight Range 16 Terrain Scan Density 10 Armor Coverage 400 Resistance: KI 40 Resistance: TH 20 Resistance: EX 20 Resistance: EM 20 Resistance: I 20 Resistance: S 20 Resistance: P 20 Core Shielding 30 Utility Shielding 66 Weapon Shielding 66 Evasion (%) 61 Energy Filtering 50 Particle Charging 15 Offensive Hacking 10 Defensive Hacking 10 Item Schematics ----------------- None Robot Schematics ------------------ None Fabricated ------------ Nothing Alien Tech Used ----------------- None Achievements -------------- Achiever Armchair Analyst Challenges ------------ None Game ------ Seed NuclearLargeThrower Manual? 0 Play Time 01:08:18 Cumulative 19.7 hours Start 2024.04.14 @ 13:33:06 End 2024.04.16 @ 14:57:01 Sessions 7 Manual Loads 0 Difficulty Adventurer Special Mode None Game No. 12 Rogue 0 Adventurer 12 Explorer 0 Win Type - Total 0 Types 0/0/0/0/0/0/0/0/0 Lore% 8 Gallery% 27 Achievement% 25 Wizard Run 0 Options --------- Layout 1 ASCII 0 Keyboard 0 Movement Mouse Keybinds 0 Fullscreen 2 Font 28/SmallcapsGlow Map View 50x40 Zoom Use 0% Tactical HUD 1 Map Filters NONE Filters NONE Steam 1 RUN: 92af911f-b4f7-4874-b601-d9062f2fb253